Cogmind - Beta 12 @@@ ROGUE MODE // 2023.12.09 @ 23:51:47 Player: ApricotBot Result: Self-destructed Performance ------------- Evolutions (1) 500 Regions Visited (3) 600 Robots Destroyed (6) 30 Value Destroyed (228) 228 Prototype IDs (0) 0 Alien Tech Used (0) 0 Bonus (0) 0 TOTAL SCORE: 1358 Bonus ------- None Cogmind --------- Core Integrity 381/400 Matter 300/300 Energy 160/160 System Corruption 0% Temperature Cool (0) Movement Treading (160) Location -9/Materials Parts ------- > --- POWER (1) -------- Light Nuclear Core > --- PROPULSION (2) --- Light Treads > --- UTILITY (3) ------ Small Storage Unit Improved Targeting Computer > --- WEAPON (3) ------- Small Laser > --- INVENTORY (8) ---- Ion Engine Light Ion Engine Light Treads Light Assault Rifle Grenade Launcher Peak State ------------ > --- POWER ------------ Light Nuclear Core > --- PROPULSION ------- Light Treads Light Treads > --- UTILITY ---------- Small Storage Unit Improved Targeting Computer > --- WEAPON ----------- Small Laser Assault Rifle Grenade Launcher > --- INVENTORY -------- Ion Engine Light Ion Engine Light Assault Rifle [Rating: 11] Favorites ----------- Power Ion Engine Engine Ion Engine Power Core Light Nuclear Core Propulsion Light Treads Treads Light Treads Utility Small Storage Unit Storage Small Storage Unit Processor Improved Targeting Computer Weapon Assault Rifle Energy Gun Small Laser Ballistic Gun Assault Rifle Launcher Grenade Launcher Build | -11 -10 -10 -9 ------- Run | Jun Mat Min Mat Slots Evolved 2 | . . . 2 Power . | . . . . Propulsion . | . . . . Utility 1 | . . . 1 Weapon 1 | . . . 1 Parts Attached 13 | 8 . 2 3 Power 3 | 2 . 1 . Engine 2 | 2 . . . Core 1 | . . 1 . Reactor . | . . . . Propulsion 2 | 2 . . . Treads 2 | 2 . . . Leg . | . . . . Wheel . | . . . . Hover . | . . . . Flight . | . . . . Utility 2 | 1 . . 1 Device . | . . . . Storage 1 | 1 . . . Processor 1 | . . . 1 Hackware . | . . . . Protection . | . . . . Artifact . | . . . . Weapon 6 | 3 . 1 2 Energy Gun 2 | 1 . 1 . Energy Cannon . | . . . . Ballistic Gun 2 | 2 . . . Ballistic Cannon . | . . . . Launcher 2 | . . . 2 Special Weapon . | . . . . Impact Weapon . | . . . . Slashing Weapon . | . . . . Piercing Weapon . | . . . . Special Melee Weapon . | . . . . Unidentified Prototypes . | . . . . Parts Lost 2 | . . . 2 Power . | . . . . Propulsion 1 | . . . 1 Utility . | . . . . Weapon 1 | . . . 1 Highest Loss Streak 1 | . . . 1 To Critical Strikes . | . . . . Average Slot Usage (%) 80 | . 85 85 71 Engine 8 | . 14 10 . Core 4 | . . 3 11 Treads 25 | . 28 28 19 Storage 13 | . 14 14 11 Processor 2 | . . . 8 Energy Gun 4 | . . 1 11 Ballistic Gun 21 | . 28 26 10 Naked Turns . | . . . . Heaviest Build 13 | 13 13 13 13 Greatest Support 40 | 40 40 40 40 Greatest Overweight (x) . | . . . . Average Overweight (x) . | . . . . Largest Inventory Capacity 8 | 8 8 8 8 Average Capacity 7 | 6 8 8 8 Most Carried 5 | 4 2 4 5 Average Carried 2 | 1 2 2 4 Final Capacity 8 | 8 8 8 8 Final Carried 5 | 2 2 4 5 Class Distribution -------------------- 100% | Mutant Dominant Class ---------------- Mutant | -10/Materials Mutant | -10/Mines Mutant | -9/Materials Resources | -11 -10 -10 -9 ----------- Run | Jun Mat Min Mat Matter Collected 403 | 240 43 57 63 Remotely . | . . . . Salvage Created 257 | . 43 103 111 Parts 14 | . 3 3 8 Haulers Intercepted . | . . . . Recyclers Shooed . | . . . . Parts Field Recycled . | . . . . Retrieved Matter . | . . . . Parts Self-Destructed . | . . . . Prevented . | . . . . Kills | -11 -10 -10 -9 ------- Run | Jun Mat Min Mat Combat Hostiles Destroyed 6 | . 1 2 3 Guns 4 | . 1 2 1 AOE 2 | . . . 2 Classes Destroyed 2 | . 1 . 1 Grunt 5 | . 1 2 2 Sentry 1 | . . . 1 Best Kill Streak 2 | . 1 2 2 Combat Bots Only 2 | . 1 2 2 Max Kills in Single Turn 2 | . 1 1 2 Gunslinging . | . . . . Exploded 2 | . . . 2 Melee . | . . . . Uniques/NPCs Destroyed . | . . . . Combat | -11 -10 -10 -9 -------- Run | Jun Mat Min Mat Damage Taken 657 | . 214 144 299 Core 64 | . 18 27 19 Absorbed by Shields . | . . . . Core Remaining (%) 91 | 100 . 82 . Volleys Fired 21 | . 3 11 7 Largest 3 | . 2 2 3 Hottest 90 | . 40 40 90 Shots Fired 44 | . 6 22 16 Gun 41 | . 6 22 13 Cannon . | . . . . Launcher 3 | . . . 3 Special . | . . . . Kinetic 34 | . 6 22 6 Thermal 7 | . . . 7 Explosive 3 | . . . 3 Electromagnetic . | . . . . Robot Hit Streak 8 | . 2 4 8 Robot Miss Streak 3 | . 1 3 3 Penetration Max . | . . . . Secondary Targets . | . . . . Shots Hit Robots 22 | . 3 10 9 Core Hits 18 | . 3 5 10 Critical Kills . | . . . . Critical Parts Destroyed . | . . . . Critical Strikes . | . . . . Melee Attacks . | . . . . Impact . | . . . . Slashing . | . . . . Piercing . | . . . . Sneak Attacks . | . . . . Combat Hostiles . | . . . . Follow-up Attacks . | . . . . Damage Inflicted 335 | . 40 96 199 Guns 205 | . 31 93 81 Cannons . | . . . . Explosions 94 | . . . 94 Melee . | . . . . Ramming 36 | . 9 3 24 Kinetic 163 | . 31 93 39 Thermal 42 | . . . 42 Explosive 94 | . . . 94 Electromagnetic . | . . . . Impact . | . . . . Slashing . | . . . . Piercing . | . . . . Highest Corruption . | . . . . Average Corruption . | . . . . Corruption Purged . | . . . . Corruption Blocked . | . . . . Overload Shots . | . . . . Overflow Damage . | . . . . Projectiles . | . . . . Explosions . | . . . . Melee . | . . . . Knockbacks . | . . . . Impact . | . . . . Kinetic . | . . . . Secondary . | . . . . Self-Inflicted Damage . | . . . . Shots . | . . . . Rammed 9 | . 1 2 6 Targets Rammed 9 | . 1 2 6 Kicked . | . . . . Crushed . | . . . . Highest Temperature 54 | . 9 43 54 Average Temperature 17 | . 6 16 20 Received Heat Transfer 318 | . 117 99 102 Siege Activations . | . . . . Robots Corrupted . | . . . . Combat Hostiles . | . . . . Parts Fried . | . . . . Impact Corruptions . | . . . . Robots Melted . | . . . . Combat Hostiles . | . . . . Parts Melted . | . . . . Heat Transferred 100 | . . . 100 Parts Sabotaged . | . . . . Parts Stolen . | . . . . Parts Stripped . | . . . . Power Chain Reactions . | . . . . Missiles Intercepted . | . . . . Alert | -11 -10 -10 -9 ------- Run | Jun Mat Min Mat Peak Influence 159 | . 110 92 159 Initial 42 | . . 42 35 Average 45 | . 13 59 76 Maximum Alert Level . | . . . . Low Security (%) 100 | 100 100 100 100 Level 1 . | . . . . Level 2 . | . . . . Level 3 . | . . . . Level 4 . | . . . . Level 5 . | . . . . High Security . | . . . . Max Security . | . . . . Squads Dispatched 2 | . . . 2 Investigation . | . . . . Extermination . | . . . . Reinforcement 2 | . . . 2 Assault . | . . . . Garrison . | . . . . Intercept . | . . . . Searches Triggered . | . . . . Construction Impeded . | . . . . Haulers Reinforced . | . . . . Active Scanning Responses . | . . . . Cargo Convoy Interrupts . | . . . . Stealth | -11 -10 -10 -9 --------- Run | Jun Mat Min Mat Distress Signals 2 | . 1 . 1 Communications Jammed . | . . . . Distress Signals . | . . . . Times Spotted 19 | . 7 2 10 Peak Tracking Total 7 | . 7 2 5 Tactical Retreats 3 | . 2 . 1 Traps | -11 -10 -10 -9 ------- Run | Jun Mat Min Mat Traps Triggered 1 | . . . 1 Indirectly . | . . . . Trap Hack Attempts . | . . . . Triggered . | . . . . Disarmed . | . . . . Reprogrammed . | . . . . Reused . | . . . . Traps Extracted . | . . . . Installed . | . . . . Triggered . | . . . . Machines | -11 -10 -10 -9 ---------- Run | Jun Mat Min Mat Machines Disabled . | . . . . Max in Single Turn . | . . . . Machines Repaired . | . . . . Machines Sabotaged . | . . . . Overloaded Fab Kills . | . . . . Hacking | -11 -10 -10 -9 --------- Run | Jun Mat Min Mat Machines Accessed . | . . . . Terminals . | . . . . Fabricators . | . . . . Repair Stations . | . . . . Recycling Units . | . . . . Scanalyzers . | . . . . Garrison Access . | . . . . Total Hacks . | . . . . Successful . | . . . . Failed . | . . . . Catastrophic . | . . . . Database Lockouts . | . . . . Manual . | . . . . Terminals . | . . . . Fabricators . | . . . . Repair Stations . | . . . . Recycling Units . | . . . . Scanalyzers . | . . . . Garrison Access . | . . . . Terminal Hacks . | . . . . Fabricator Hacks . | . . . . Repair Station Hacks . | . . . . Recycling Unit Hacks . | . . . . Scanalyzer . | . . . . Garrison Access Hacks . | . . . . Unauthorized Hacks . | . . . . Terminals . | . . . . Fabricators . | . . . . Repair Stations . | . . . . Recycling Units . | . . . . Scanalyzers . | . . . . Garrison Access . | . . . . Data Cores Recovered . | . . . . Used . | . . . . Hacking Detections . | . . . . Full Trace Events . | . . . . Feedback Events . | . . . . Feedback Blocked . | . . . . Robot Schematics Acquired . | . . . . Robots Built . | . . . . Authchips . | . . . . Time . | . . . . Total Robot Build Rating . | . . . . Part Schematics Acquired . | . . . . Parts Built . | . . . . Authchips . | . . . . Time . | . . . . Total Part Build Rating . | . . . . Parts Repaired . | . . . . Time . | . . . . Parts Recycled . | . . . . Recycled Matter . | . . . . Retrieved Matter . | . . . . Retrieved Components . | . . . . Parts Scanalyzed . | . . . . Part Schematics Acquired . | . . . . Parts Damaged . | . . . . Bothacking | -11 -10 -10 -9 ------------ Run | Jun Mat Min Mat Used RIF Installer . | . . . . Robots Hacked . | . . . . Non-combat . | . . . . Combat . | . . . . Robot Hacks Applied . | . . . . Relay Couplers Released . | . . . . Fabnet Peak Effective % . | . . . . Robots Rewired . | . . . . Allies Hacked . | . . . . Hacks Repelled . | . . . . Allies | -11 -10 -10 -9 -------- Run | Jun Mat Min Mat Total Allies . | . . . . Largest Group . | . . . . Highest-Rated Group . | . . . . Highest-Rated Ally . | . . . . Total Orders . | . . . . Ally Attacks . | . . . . Total Damage . | . . . . Kills . | . . . . Allies Corrupted . | . . . . Allies Melted . | . . . . Intel | -11 -10 -10 -9 ------- Run | Jun Mat Min Mat Robot Analysis Total . | . . . . Derelict Logs Recovered 1 | . . 1 . Drone Launches . | . . . . Drone Recoveries . | . . . . Exploration | -11 -10 -10 -9 ------------- Run | Jun Mat Min Mat Turns Passed 973 | 72 296 330 275 Spaces Moved 514 | 39 147 179 149 Core 6 | 6 . . . Treads 508 | 33 147 179 149 Legs . | . . . . Wheels . | . . . . Hover . | . . . . Flight . | . . . . Fastest Speed 50 | 50 160 160 160 Average Speed 158 | 143 160 160 160 Slowest Speed 160 | 160 160 160 160 Overloaded Moves . | . . . . Propulsion Burnouts . | . . . . Robots Hopped . | . . . . Cave-ins Triggered . | . . . . Exploration Rate (%) 23 | 4 28 35 28 Regions Visited 3 Branch Regions 1 Pre-discovered Areas . | . . . . Known Exits Taken . | . . . . Unknown Exits Taken 3 | 1 1 1 . Scrap Searched 1 | . . 1 . Spaces Dug . | . . . . Terrain Destroyed 23 | . . . 23 Melee . | . . . . Projectile . | . . . . AOE 23 | . . . 23 Terrain Rammed . | . . . . Walls Destroyed . | . . . . Machines Disabled . | . . . . Actions | -11 -10 -10 -9 --------- Run | Jun Mat Min Mat Total 626 | 54 202 201 169 Wait 58 | . 52 6 . Move 511 | 38 146 178 149 Hop . | . . . . Pick Up 12 | 8 . 2 2 Fast Attach . | . . . . Attach 9 | 6 . . 3 Detach 2 | . . . 2 Swap 4 | 2 . 2 . Drop . | . . . . Fire 21 | . 3 11 7 Melee . | . . . . Ram . | . . . . Kick . | . . . . Crush 9 | . 1 2 6 Escape Stasis . | . . . . Rewire . | . . . . Trap . | . . . . Miscellaneous . | . . . . Route ------- -11/Junkyard -10/Materials (discovered 2 exits: [*Min x2]) -10/Mines -9/Materials History --------- Turn | Location | Event 2 | -11/Junkyard | Discovered new exit (range 16) 73 | -11/Junkyard | Entered Materials 112 | -10/Materials | Discovered new exit (range 9) 251 | -10/Materials | Discovered new exit (range 9) 302 | -10/Materials | Build established: Mutant 369 | -10/Materials | Entered Mines 393 | -10/Mines | Learned Materials emergency access door positions 645 | -10/Mines | YI-UF0 nonchalantly dropped a Grenade Launcher on the ground 662 | -10/Mines | Found a hidden stash of uninstalled traps 686 | -10/Mines | Discovered new exit (range 3) 699 | -10/Mines | Entered Materials 699 | -9/Materials | Evolved 2 slots: Utility x1, Weapon x1 974 | -9/Materials | Self-destructed Last Messages --------------- 00911_ U-05 Engineer lays Concrete. 00911_ R-06 Scavenger collects Aluminum Leg. 00912_ U-05 Engineer lays Concrete. 00912_ K-01 Serf collects debris. 00913_ U-05 Engineer lays Concrete. 00915_ R-06 Scavenger collects Sml. Laser. 00915_ ALERT: Hostiles spotted, dispatching reinforcements to Terminal M005. 00915_ Lgt. Treads destroyed. 00915_ U-05 Engineer lays Concrete. 00921_ Critical hit (Burn: +37). 00927_ Triggered Explosive Trap. 00927_ An explosion rips through the floor. 00932_ Slammed into K-01 Serf. 00949_ K-01 Serf cleans the Electrolysis Chamber. 00951_ Assault Rifle destroyed. 00958_ K-01 Serf cleans the Electrolysis Chamber. 00966_ ALERT: Hostiles spotted, dispatching reinforcements to Terminal M010. 00967_ K-01 Serf cleans the Electrolysis Chamber. Map ----- +----------------------------------------------------+ | ?????????????????????????????????????????????????? | | ?????????????????????????????????????????????????? | | ?????????????????????????????????????????????????? | | ?????????????????????????????????????????????????? | | ???????????????????????????#############?????????? | | ???????????????????????? #?????????? | | ???????????????????????# #?????????? | | ???????????????????????# #?????????? | | ???????????????????????# #?????????? | | ???????????????????????# """ #?????????? | | ???????????????????????# """ #?????????? | | ?????????????????????+?# """ #?????????? | | ???????????????????????# #?????????? | | ???????????????????????# #?????????# | | ???????????????????????# """ ########### | | ???????????????????????# """ | | ???????????????????##+###+## """ ########### | | ??????????????????# # #?????????## | | ??????????????????# """ " # #??????????? | | ??????????????????# """u T # """ #??????????? | | ??????????????????# """ " # """ #??????????? | | ??????????????????# s# """ #??????????? | | ??????????????????# """ [ s/ + ????????? | | ??????????????????# """ s# # =?????? | | ??????????????????# """ # """ # ???????? | | ??????????????????# @ # """ #? ???????? | | ??????????????????#######/## """ #?##+??????? | | ????????????????????????# #??????????? | | ????????????????????????# #??????????? | | ????????????????????????# """ #??????????? | | ????????????????????????# """ #??????????? | | ????????????????????????# ""? #??????????? | | ????????????????????????# ??????????????? | | ????????????????????????# ??????????????? | | ????????????????????????? ""??????????????? | | ????????????????????????? ????????????????? | | ????????????????????????? ??????????????????? | | ????????????????????????? o?????????????????? | | ????????????????????????? ?????????????????? | | ????????????????????????? ??????????????????## | | ?????????????????????????##+????????????????????# | | ????????????????????????????????????????????????# | | ????????????????????????????????????????????????# | | ????????????????????????????????????????????????# | | ????????????????????????????????????????????????# | | ????????????????????????????????????????????????# | | ????????????????????????????????????????????????# | | ????????????????????????????????????????????????# | | ????????????????????????????????????????????????# | | ????????????????????????????????????????????????## | +----------------------------------------------------+ Best States ------------- Heat Dissipation 28 Energy Generation 14 Energy Capacity 250 Matter Stores 300 Matter Capacity 300 Sight Range 16 Terrain Scan Density 10 Evasion (%) 40 Targeting Accuracy 6 Recoil Reduction 2 Item Schematics ----------------- None Robot Schematics ------------------ None Fabricated ------------ Nothing Alien Tech Used ----------------- None Achievements -------------- None Challenges ------------ None Game ------ Seed TerrabombDerelictBoregun Manual? 0 Play Time 00:11:16 Cumulative 11.4 hours Start 2023.12.09 @ 09:03:14 End 2023.12.09 @ 23:51:47 Sessions 3 Manual Loads 0 Difficulty Rogue Special Mode None Game No. 34 Rogue 28 Adventurer 6 Explorer 0 Win Type - Total 0 Types 0/0/0/0/0/0/0/0/0 Lore% 4 Gallery% 21 Achievement% 15 Wizard Run 0 Options --------- ASCII 0 Keyboard 0 Movement Mouse Keybinds 0 Fullscreen 1 Font 12/Smallcaps Map View 76x56 Tactical HUD 1 Map Filters NONE Filters NONE Steam 1 RUN: c4c7d07e-c64d-4676-a505-6f0ba1c9aba4